Cogmind - Beta 13 @@@ ROGUE MODE // 2024.05.04 @ 15:27:23 Player: SlyFyer Result: Destroyed by DAS Turret with DAS Cannon Performance ------------- Evolutions (1) 500 Regions Visited (5) 1000 Robots Destroyed (70) 350 Value Destroyed (1542) 1542 Prototype IDs (26) 520 Alien Tech Used (0) 0 Bonus (300) 300 TOTAL SCORE: 4212 Bonus ------- Aligned with FarCom 300 Cogmind --------- Core Integrity 0/400 Matter 227/300 Energy 21/280 System Corruption 2% Temperature Cool (23) Movement Treading (400) Ox3 Location -9/Exiles Parts ------- > --- POWER (1) -------- Heavy Ion Engine > --- PROPULSION (2) --- Light Treads > --- UTILITY (4) ------ High-capacity Storage Unit Hacking Suite Hacking Suite > --- WEAPON (2) ------- YOLO Cannon > --- INVENTORY (20) --- High-capacity Matter Pod (200) Hacking Suite Field Recycling Unit (0) Minigun Minigun Minigun Minigun Grenade Launcher Rocket Launcher Mining Claw Peak State ------------ > --- POWER ------------ Heavy Ion Engine > --- PROPULSION ------- Light Treads > --- UTILITY ---------- High-capacity Storage Unit Hacking Suite Hacking Suite > --- WEAPON ----------- YOLO Cannon > --- INVENTORY -------- High-capacity Matter Pod Hacking Suite Field Recycling Unit Minigun Minigun Minigun Minigun Grenade Launcher Rocket Launcher Mining Claw [Rating: 33] Favorites ----------- Power Light Ion Engine Engine Light Ion Engine Power Core Light Nuclear Core Propulsion Light Treads Treads Light Treads Utility Large Storage Unit Device Seismic Detector Storage Large Storage Unit Processor Targeting Computer Hackware Hacking Suite Protection Core Shielding Weapon Assault Rifle Energy Gun EM Pulse Gun Energy Cannon YOLO Cannon Ballistic Gun Assault Rifle Ballistic Cannon Light Cannon Launcher Grenade Launcher Slashing Weapon Mining Claw Build | -11 -10 -10 -9 -9 -9 ------- Run | Yrd Mat Min Mat Min Exi Slots Evolved 2 | . . . 2 . . Power . | . . . . . . Propulsion . | . . . . . . Utility 2 | . . . 2 . . Weapon . | . . . . . . Parts Attached 66 | 6 14 4 34 1 7 Power 9 | 1 . 1 5 . 2 Engine 8 | 1 . . 5 . 2 Core 1 | . . 1 . . . Reactor . | . . . . . . Propulsion 17 | 2 1 1 9 1 3 Treads 17 | 2 1 1 9 1 3 Leg . | . . . . . . Wheel . | . . . . . . Hover . | . . . . . . Flight . | . . . . . . Utility 9 | 1 2 . 5 . 1 Device 1 | . 1 . . . . Storage 3 | 1 1 . . . 1 Processor 1 | . . . 1 . . Hackware 3 | . . . 3 . . Protection 1 | . . . 1 . . Artifact . | . . . . . . Weapon 31 | 2 11 2 15 . 1 Energy Gun 4 | 2 2 . . . . Energy Cannon 2 | . . . 1 . 1 Ballistic Gun 15 | . 4 . 11 . . Ballistic Cannon 2 | . . 2 . . . Launcher 2 | . 1 . 1 . . Special Weapon . | . . . . . . Impact Weapon . | . . . . . . Slashing Weapon 6 | . 4 . 2 . . Piercing Weapon . | . . . . . . Special Melee Weapon . | . . . . . . Unidentified Prototypes 3 | . . . 3 . . Parts Lost 22 | . . 4 13 . 5 Power 3 | . . 1 2 . . Propulsion 8 | . . 1 4 . 3 Utility 4 | . . . 3 . 1 Weapon 7 | . . 2 4 . 1 Highest Loss Streak 5 | . . 2 3 . 5 To Critical Strikes . | . . . . . . Average Slot Usage (%) 98 | . 99 99 95 100 99 Engine 10 | . 14 3 9 11 10 Core 2 | . . 10 . . . Treads 25 | . 28 27 21 22 22 Device 8 | . 13 14 . . . Storage 12 | . 14 14 11 11 11 Processor 4 | . . . 11 11 10 Hackware 5 | . . . 10 22 22 Protection 2 | . . . 8 . . Energy Gun 4 | . 10 . . . . Ballistic Gun 15 | . 14 14 15 22 21 Ballistic Cannon 3 | . . 14 4 . . Slashing Weapon 1 | . 3 . . . . Naked Turns . | . . . . . . Heaviest Build 53 | 12 28 32 35 33 53 Greatest Support 40 | 40 40 40 40 40 40 Greatest Overweight (x) 10 | . . 1 10 . 1 Average Overweight (x) . | . . . . . . Largest Inventory Capacity 20 | 8 15 15 15 15 20 Average Capacity 12 | 6 8 15 15 15 16 Most Carried 15 | 5 13 15 15 15 15 Average Carried 11 | 2 8 13 13 15 14 Final Capacity 20 | 8 15 15 15 15 20 Final Carried 15 | 4 13 13 15 15 10 Class Distribution -------------------- 81% | Mutant 16% | Hacker-Mutant Dominant Class ---------------- Mutant | -10/Materials Mutant | -10/Mines Mutant | -9/Materials Hacker-Mutant | -9/Mines Hacker-Mutant | -9/Exiles Resources | -11 -10 -10 -9 -9 -9 ----------- Run | Yrd Mat Min Mat Min Exi Matter Collected 2105 | 260 580 156 1001 108 . Remotely . | . . . . . . Salvage Created 2077 | 77 379 179 1267 163 12 Parts 164 | 8 27 9 97 16 7 Haulers Intercepted 7 | . 1 . 6 . . Recyclers Shooed 2 | . . . 2 . . Parts Field Recycled . | . . . . . . Retrieved Matter . | . . . . . . Parts Self-Destructed . | . . . . . . Prevented . | . . . . . . Kills | -11 -10 -10 -9 -9 -9 ------- Run | Yrd Mat Min Mat Min Exi Combat Hostiles Destroyed 48 | . 9 6 27 6 . Guns 34 | . 9 4 15 6 . Cannons 12 | . . 2 10 . . AOE 2 | . . . 2 . . Classes Destroyed 11 | 2 5 . 3 1 . Worker 3 | . . . 3 . . Builder 1 | . . . 1 . . Tunneler 2 | 1 . . 1 . . Hauler 7 | . 1 . 6 . . Recycler 1 | 1 . . . . . Operator 2 | . 1 . 1 . . Watcher 5 | . 1 . 4 . . Swarmer 17 | . 4 2 7 4 . Grunt 24 | . 5 4 14 1 . Brawler 1 | . . . . 1 . Sentry 6 | . . . 6 . . Best Kill Streak 7 | 2 3 3 7 4 1 Combat Bots Only 4 | . 3 3 4 4 . Max Kills in Single Turn 3 | 1 2 1 3 2 1 Gunslinging 1 | . . . 1 1 . Exploded 1 | . . . 1 . . Melee . | . . . . . . Uniques/NPCs Destroyed 1 | . . . . . 1 EX-BIN (-9/Exiles) Combat | -11 -10 -10 -9 -9 -9 -------- Run | Yrd Mat Min Mat Min Exi Hostile Shots Fired 329 | . 64 43 155 25 42 Missed 90 | . 15 13 44 5 13 Damage Taken 3182 | . 491 363 1413 161 754 Core 487 | . 38 31 271 6 141 Absorbed by Shields . | . . . . . . Redirected to Shielding 52 | . . . 52 . . Core Remaining (%) 86 | 100 . 72 . . . Volleys Fired 194 | 2 54 22 105 8 3 Largest 2 | 2 2 2 2 2 1 Hottest 100 | 80 80 70 70 46 100 Shots Fired 378 | 4 102 44 207 16 5 Gun 316 | 4 96 29 167 16 4 Cannon 49 | . . 15 33 . 1 Launcher 13 | . 6 . 7 . . Special . | . . . . . . Kinetic 324 | . 60 44 200 16 4 Thermal 1 | . . . . . 1 Explosive 13 | . 6 . 7 . . Electromagnetic 40 | 4 36 . . . . Robot Hit Streak 17 | 2 16 17 13 11 3 Robot Miss Streak 5 | . 5 3 4 3 1 Penetration Max . | . . . . . . Secondary Targets 6 | . 1 1 3 1 . Max Gunslinging Chain 1 | . 1 1 1 1 . Shots Hit Robots 245 | 2 55 29 145 11 3 Core Hits 99 | 2 16 11 61 8 1 Critical Kills . | . . . . . . Critical Parts Destroyed . | . . . . . . Critical Strikes 1 | . . 1 . . . Blast 1 | . . 1 . . . Melee Attacks 21 | . 19 . 2 . . Impact . | . . . . . . Slashing 21 | . 19 . 2 . . Piercing . | . . . . . . Sneak Attacks . | . . . . . . Combat Hostiles . | . . . . . . Follow-up Attacks . | . . . . . . Damage Inflicted 4059 | 27 732 383 2602 163 152 Guns 3095 | 27 732 296 1847 163 30 Cannons 620 | . . 87 411 . 122 Explosions 339 | . . . 339 . . Melee . | . . . . . . Ramming 5 | . . . 5 . . Kinetic 3344 | . 510 383 2258 163 30 Thermal 122 | . . . . . 122 Explosive 339 | . . . 339 . . Electromagnetic 249 | 27 222 . . . . Impact . | . . . . . . Slashing . | . . . . . . Piercing . | . . . . . . Highest Corruption 2 | . . . 2 2 2 Average Corruption 2 | . . . 2 2 2 Corruption Purged . | . . . . . . Corruption Blocked . | . . . . . . Effects 36 | . . . 29 2 5 Message Errors 8 | . . . 7 . 1 Matter Fused 8 | . . . 6 2 . Heat Flow Errors 5 | . . . 5 . . Energy Discharges 3 | . . . 2 . 1 Data Loss (minor) 5 | . . . 4 . 1 Data Loss (major) 2 | . . . 2 . . Misfires 4 | . . . 2 . 2 Weapon Failures 1 | . . . 1 . . Overload Shots . | . . . . . . Overflow Damage 82 | . . . . . 82 Projectiles 82 | . . . . . 82 Explosions . | . . . . . . Melee . | . . . . . . Knockbacks 8 | . . 1 7 . . Impact . | . . . . . . Kinetic 6 | . . 1 5 . . Secondary 2 | . . . 2 . . Self-Inflicted Damage 8 | . 8 . . . . Shots 1 | . 1 . . . . Rammed . | . . . . . . Targets Rammed 1 | . . . 1 . . Kicked . | . . . . . . Crushed 1 | . . . 1 . . Highest Temperature 243 | 18 114 47 243 . 23 Average Temperature 30 | 12 32 22 33 . 23 Received Heat Transfer 1030 | . 180 165 633 12 40 Siege Activations . | . . . . . . Robots Corrupted 1 | . 1 . . . . Combat Hostiles . | . . . . . . Parts Fried 5 | . 4 . 1 . . Impact Corruptions 1 | . . . 1 . . Robots Melted . | . . . . . . Combat Hostiles . | . . . . . . Parts Melted . | . . . . . . Heat Transferred 80 | . . . . . 80 Parts Sabotaged . | . . . . . . Parts Stolen . | . . . . . . Parts Stripped . | . . . . . . Power Chain Reactions . | . . . . . . Alert | -11 -10 -10 -9 -9 -9 ------- Run | Yrd Mat Min Mat Min Exi Peak Influence 346 | 10 200 119 346 269 . Initial 129 | . 6 34 15 129 . Average 110 | 2 53 26 228 252 . Maximum Alert Level 1 | . 1 . 1 1 . Low Security (%) 71 | 100 98 100 24 8 . Level 1 28 | . 1 . 75 91 . Level 2 . | . . . . . . Level 3 . | . . . . . . Level 4 . | . . . . . . Level 5 . | . . . . . . High Security . | . . . . . . Max Security . | . . . . . . Squads Dispatched 8 | . 6 . 2 . . Investigation 5 | . 4 . 1 . . Extermination . | . . . . . . Reinforcement 3 | . 2 . 1 . . Assault . | . . . . . . Garrison . | . . . . . . Intercept . | . . . . . . Searches Triggered . | . . . . . . Construction Impeded . | . . . . . . Haulers Reinforced . | . . . . . . Active Scanning Responses . | . . . . . . Cargo Convoy Interrupts . | . . . . . . Stealth | -11 -10 -10 -9 -9 -9 --------- Run | Yrd Mat Min Mat Min Exi Distress Signals 4 | . 2 . 2 . . Communications Jammed . | . . . . . . Distress Signals . | . . . . . . Times Spotted 79 | . 19 8 35 6 11 Peak Tracking Total 13 | . 5 3 4 4 13 Tactical Retreats 7 | . 3 1 1 . 2 Traps | -11 -10 -10 -9 -9 -9 ------- Run | Yrd Mat Min Mat Min Exi Traps Triggered 4 | . . . 4 . . Indirectly . | . . . . . . Trap Hack Attempts . | . . . . . . Triggered . | . . . . . . Disarmed . | . . . . . . Reprogrammed . | . . . . . . Reused . | . . . . . . Traps Extracted . | . . . . . . Installed . | . . . . . . Triggered . | . . . . . . Most Traps Carried 1 | . . 1 1 . . Machines | -11 -10 -10 -9 -9 -9 ---------- Run | Yrd Mat Min Mat Min Exi Machines Disabled 5 | . 1 . 2 . 2 Max in Single Turn 1 | . 1 . 1 . 1 Machines Repaired . | . . . . . . Machines Dismantled . | . . . . . . Machines Sabotaged . | . . . . . . Overloaded Fab Kills . | . . . . . . Hacking | -11 -10 -10 -9 -9 -9 --------- Run | Yrd Mat Min Mat Min Exi Machines Accessed 15 | . 8 1 5 . 1 Terminals 11 | . 6 1 4 . . Fabricators . | . . . . . . Repair Stations . | . . . . . . Recycling Units 3 | . 2 . 1 . . Scanalyzers . | . . . . . . Garrison Access . | . . . . . . Total Hacks 27 | . 14 2 10 . 1 Successful 13 | . 7 . 5 . 1 Failed 14 | . 7 2 5 . . Catastrophic 3 | . 3 . . . . Database Lockouts . | . . . . . . Manual 20 | . 11 . 8 . 1 Terminals 23 | . 12 2 9 . . Fabricators . | . . . . . . Repair Stations . | . . . . . . Recycling Units 3 | . 2 . 1 . . Scanalyzers . | . . . . . . Garrison Access . | . . . . . . Terminal Hacks 7 | . 3 . 3 . 1 Branch Access Points 1 | . . . 1 . . Alert Level 2 | . 1 . 1 . . Locate Traps 1 | . 1 . . . . Hauler Manifests 2 | . 1 . 1 . . Derelict Proto ID Bank 1 | . . . . . 1 Fabricator Hacks . | . . . . . . Repair Station Hacks . | . . . . . . Recycling Unit Hacks . | . . . . . . Scanalyzer . | . . . . . . Garrison Access Hacks . | . . . . . . Unauthorized Hacks 6 | . 4 . 2 . . Terminals 3 | . 2 . 1 . . Assimilate 1 | . 1 . . . . Operators 2 | . 1 . 1 . . Fabricators . | . . . . . . Repair Stations . | . . . . . . Recycling Units 3 | . 2 . 1 . . Tunnel 3 | . 2 . 1 . . Scanalyzers . | . . . . . . Garrison Access . | . . . . . . Data Cores Recovered . | . . . . . . Used . | . . . . . . Hacking Detections 10 | . 5 1 4 . . Full Trace Events 1 | . 1 . . . . Feedback Events . | . . . . . . Feedback Blocked . | . . . . . . Robot Schematics Acquired . | . . . . . . Robots Built . | . . . . . . Authchips . | . . . . . . Time . | . . . . . . Total Robot Build Rating . | . . . . . . Part Schematics Acquired . | . . . . . . Parts Built . | . . . . . . Authchips . | . . . . . . Time . | . . . . . . Total Part Build Rating . | . . . . . . Parts Repaired . | . . . . . . Time . | . . . . . . Parts Recycled . | . . . . . . Recycled Matter . | . . . . . . Retrieved Matter . | . . . . . . Retrieved Components . | . . . . . . Parts Scanalyzed . | . . . . . . Part Schematics Acquired . | . . . . . . Parts Damaged . | . . . . . . Bothacking | -11 -10 -10 -9 -9 -9 ------------ Run | Yrd Mat Min Mat Min Exi Used RIF Installer . | . . . . . . Robots Hacked . | . . . . . . Non-combat . | . . . . . . Combat . | . . . . . . Robot Hacks Applied . | . . . . . . Relay Couplers Released . | . . . . . . Fabnet Peak Effective % . | . . . . . . Robots Rewired . | . . . . . . Allies Hacked . | . . . . . . Hacks Repelled . | . . . . . . Allies | -11 -10 -10 -9 -9 -9 -------- Run | Yrd Mat Min Mat Min Exi Total Allies 1 | . 1 . . . . Largest Group 1 | . 1 . . . . Highest-Rated Group 10 | . 10 . . . . Highest-Rated Ally 10 | . 10 . . . . Total Orders . | . . . . . . Ally Attacks . | . . . . . . Total Damage . | . . . . . . Kills . | . . . . . . Allies Corrupted . | . . . . . . Allies Melted . | . . . . . . Intel | -11 -10 -10 -9 -9 -9 ------- Run | Yrd Mat Min Mat Min Exi Robot Analysis Total . | . . . . . . Derelict Logs Recovered 2 | . . 1 . 1 . Drone Launches . | . . . . . . Drone Recoveries . | . . . . . . Exploration | -11 -10 -10 -9 -9 -9 ------------- Run | Yrd Mat Min Mat Min Exi Turns Passed 6816 | 115 2645 1192 1990 220 654 Spaces Moved 3675 | 79 1432 698 980 122 364 Core 32 | 31 . . 1 . . Treads 3643 | 48 1432 698 979 122 364 Legs . | . . . . . . Wheels . | . . . . . . Hover . | . . . . . . Flight . | . . . . . . Fastest Speed 50 | 50 160 160 160 160 160 Average Speed 160 | 116 160 160 160 160 174 Slowest Speed 550 | 160 160 260 550 160 240 Overloaded Moves . | . . . . . . Propulsion Burnouts . | . . . . . . Robots Hopped . | . . . . . . Cave-ins Triggered . | . . . . . . Exploration Rate (%) 60 | 5 96 97 71 28 66 Regions Visited 5 Branch Regions 3 Pre-discovered Areas 3 | . 2 . 1 . . Known Exits Taken 1 | . . . 1 . . Unknown Exits Taken 4 | 1 1 1 . 1 . Scrap Searched 2 | . . 2 . . . Spaces Dug 10 | . 8 . 2 . . Terrain Destroyed 69 | . 30 . 38 . 1 Melee 10 | . 8 . 2 . . Projectile . | . . . . . . AOE 59 | . 22 . 36 . 1 Terrain Rammed . | . . . . . . Walls Destroyed . | . . . . . . Machines Disabled . | . . . . . . Actions | -11 -10 -10 -9 -9 -9 --------- Run | Yrd Mat Min Mat Min Exi Total 4164 | 98 1645 727 1183 131 380 Wait 133 | . 103 1 28 . 1 Move 3670 | 78 1431 697 979 121 364 Hop . | . . . . . . Pick Up 54 | 11 16 3 23 . 1 Fast Attach 12 | . . 1 11 . . Attach 31 | 6 3 3 15 . 4 Detach 1 | . . . 1 . . Swap 23 | . 11 . 8 1 3 Drop 24 | 1 8 . 10 1 4 Fire 194 | 2 54 22 105 8 3 Melee 21 | . 19 . 2 . . Ram . | . . . . . . Kick . | . . . . . . Crush 1 | . . . 1 . . Escape Stasis . | . . . . . . Rewire . | . . . . . . Trap . | . . . . . . Miscellaneous . | . . . . . . Route ------- -11/Scrapyard -10/Materials (discovered 6 exits: *Mat x3 / *Min x2 / [*Sub]) -10/Mines (discovered 2 exits: *Mat x2) -9/Materials (discovered 5 exits: [*Mat x2] / *Min x2 / Sto) -9/Mines (discovered 2 exits: [*Mat] / *Exi) -9/Exiles (discovered 1 exit: [*Min]) History --------- Turn | Location | Event 19 | -11/Scrapyard | Discovered new exit (range 16) 116 | -11/Scrapyard | Entered Materials 318 | -10/Materials | Build established: Mutant 716 | -10/Materials | Derelicts attacked the area 892 | -10/Materials | Discovered new exit (range 9) 983 | -10/Materials | Discovered new exit (range 15) 1077 | -10/Materials | Discovered new exit (range 13) 1179 | -10/Materials | Discovered new exit (range 6) 1317 | -10/Materials | Discovered new exit (range 15) 2277 | -10/Materials | Discovered new exit (range 15) 2761 | -10/Materials | Entered Mines 2808 | -10/Mines | Learned Materials stockpile data 2820 | -10/Mines | Received a Rocket Launcher from a helpful Derelict 3015 | -10/Mines | Found a hidden stash of uninstalled traps 3484 | -10/Mines | Discovered new exit (range 9) 3670 | -10/Mines | Discovered new exit (range 15) 3953 | -10/Mines | Entered Materials 3953 | -9/Materials | Evolved 2 slots: Utility x2 4188 | -9/Materials | Discovered new exit (range 16) 4386 | -9/Materials | Lost 3 parts (1p2w) 4822 | -9/Materials | Core integrity fell below 50% 4862 | -9/Materials | Lost 3 parts (1n2w) 5056 | -9/Materials | Discovered new exit (range 7) 5136 | -9/Materials | Discovered new exit (range 15) 5577 | -9/Materials | Discovered new exit (range 7) 5849 | -9/Materials | Identified exit to Mines 5849 | -9/Materials | Identified exit to Storage 5943 | -9/Materials | Entered Mines 5996 | -9/Mines | Build established: Hacker-Mutant 6043 | -9/Mines | Learned Materials emergency access door positions 6078 | -9/Mines | Discovered new exit (range 10) 6151 | -9/Mines | Deemed a non-threat by the Exiles lab entrance 6153 | -9/Mines | Discovered new exit (range 5) 6163 | -9/Mines | Entered Exiles 6203 | -9/Exiles | Discovered new exit (range 15) 6227 | -9/Exiles | Met 8R-AWN 6259 | -9/Exiles | Met EX-HEX 6330 | -9/Exiles | Met EX-BIN 6365 | -9/Exiles | Aligned with FarCom system 6367 | -9/Exiles | Given EX-Vault access code 6418 | -9/Exiles | Opened EX-Vault 6439 | -9/Exiles | Found YOLO Cannon 6472 | -9/Exiles | Warned to stay clear of 0b10 Research branches 6528 | -9/Exiles | Met EX-DEC 6798 | -9/Exiles | Attacked by the Exiles 6814 | -9/Exiles | Core integrity fell below 20% 6816 | -9/Exiles | Destroyed EX-BIN 6817 | -9/Exiles | Destroyed by DAS Turret with DAS Cannon Last Messages --------------- EX-DEC: Ah I see we have a visitor. One wrong move in here and I'll invert your atomic chain! 06642_ Dropped Lrg. Storage Unit. 06798_ System corrupted: FCS attempts to trigger Imp. Assault Rifle. 06798_ System corrupted: Imp. Assault Rifle misfires. 06798_ EXILES: Hostile robot within lab perimeter. Defensive protocols time, folks! 06800_ Imp. Assault Rifle destroyed. 06801_ Imp. Ion Engine blasted off. 06803_ Targeting Computer destroyed. 06803_ Machine disabled. 06805_ Lgt. Treads destroyed. 06807_ XK-BV0(z) destroyed. 06812_ Dropped Imp. Assault Rifle. 06813_ Lgt. Treads destroyed. 06813_ Knocked back. 06816_ EX-BIN: "I just want to science!" 06816_ Destroyed Mak. Hover Unit. 06816_ EX-BIN: "You can't kill me, my evil twin will get revenge!" 06816_ EX-BIN destroyed. Map ----- +----------------------------------------------------+ | "???????????#"" """#???????## """""???? | | ????????????#"" #????????# """##???? | | ????????????#"" #????????#" "X" """"????? | | #???????????#"" "#????????#" """ #????? | | #???????????# ""#????????#" """""""""#????? | | ###?????????#"" ""????????##" ###########????? | | ##??????????# #????????##"" #??????????????? | | ######???### ###?######"" #??????????????? | | """#####X# #"###""""""" ##?????????????? | | """""" " "" ##???########## | | "" """ " #####""""""""" | | " " " """ """ | | ## "" " | | ?### " " | | ???## " | | ????## " | | ?????##" | | ??????#""" """""" | | ?????##" ######""" | | ?????#"" ""##????#####""" | | ????##""" """##?????????##""" | | ????#""" """##???????????#"""" | | ????#""" ""#????????????#"" | | ????#"" ########???????""" | | ????#""" ##aaa####""" ? | | ????#"" %! %[@*%a""" | | ????##"" ! % | | ?????#"""" %% aaa | | ?????## % " | | ??????#" " "" """ | | ??????#"""" ""## ##""" " " ?"#" | | ??????#"" c ""###? #??##????????##""" | | ??????#" """"##???? #?????????????#### | | ??????#""" """#????? #????????????????? | | ??????## ""##?????? ????????????????? | | ???????#"" """##???????? ???????????????? | | ???????##""" ##????????? ???????????????? | | ????????##"""" ##???????????"??????????????? | | ???????????# #???????????????????????????? | | ?????????????### ##???????????????????????????? | | ???????????????## #????????????????????????????? | | ????????????????? ?????????????????????????????? | | ?????????????????????????????????????????????????? | | ?????????????????????????????????????????????????? | | ?????????????????????????????????????????????????? | | ?????????????????????????????????????????????????? | | ?????????????????????????????????????????????????? | | ?????????????????????????????????????????????????? | | ?????????????????????????????????????????????????? | | ?????????????????????????????????????????????????? | +----------------------------------------------------+ Best States ------------- Heat Dissipation 28 Energy Generation 14 Energy Capacity 280 Matter Stores 300 Matter Capacity 300 Sight Range 16 Terrain Scan Density 10 Core Shielding 20 Evasion (%) 50 Targeting Accuracy 5 Recoil Reduction 2 Offensive Hacking 20 Item Schematics ----------------- None Robot Schematics ------------------ None Fabricated ------------ Nothing Alien Tech Used ----------------- None Achievements -------------- None Challenges ------------ None Game ------ Seed ImpactModifiedLattice Manual? 0 Play Time 00:36:12 Cumulative 84.9 hours Start 2024.05.04 @ 00:59:04 End 2024.05.04 @ 15:27:23 Sessions 3 Manual Loads 0 Difficulty Rogue Special Mode None Game No. 42 Rogue 12 Adventurer 30 Explorer 0 Win Type - Total 3 Types 2/1/0/0/0/0/0/0/0 Lore% 50 Gallery% 66 Achievement% 60 Wizard Run 0 Options --------- Layout 0 ASCII 0 Keyboard 0 Movement Arrows Keybinds 0 Fullscreen 1 Font 18/SmallcapsGlow Map View 76x50 Zoom Use 0% Tactical HUD 1 Map Filters NONE Filters NONE Steam 1 RUN: 82059e58-db83-4075-850e-a14c15108f41